[Event "Titled Tuesday Blitz March 14 Early 2023"]
[White "Terry, Renato"]
[Black "Miszler, Levente"]
[WhiteFideId "3803457"]
[BlackFideId "763276"]
[WhiteElo "2579"]
[BlackElo "2176"]
[Result "1-0"]
[Round "02"]
[TimeControl "180+2"]
[Date "2023.03.14"]
[WhiteClock "0:00:02"]
[BlackClock "0:00:05"]

1. e4 {[%clk 0:03:00]}  e6 {[%clk 0:02:58]} 2. d4 {[%clk 0:03:00]}  d5 {[%clk 0:02:58]} 3. exd5 {[%clk 0:03:01]}  exd5 {[%clk 0:02:59]} 4. Nf3 {[%clk 0:03:02]}  Nf6 {[%clk 0:03:00]} 5. Bd3 {[%clk 0:03:01]}  Bd6 {[%clk 0:03:00]} 6. O-O {[%clk 0:03:01]}  O-O {[%clk 0:03:00]} 7. h3 {[%clk 0:03:01]}  h6 {[%clk 0:03:00]} 8. Re1 {[%clk 0:03:01]}  Be6 {[%clk 0:03:00]} 9. c3 {[%clk 0:03:00]}  Nbd7 {[%clk 0:02:55]} 10. Nbd2 {[%clk 0:02:50]}  Re8 {[%clk 0:02:55]} 11. Nf1 {[%clk 0:02:48]}  c5 {[%clk 0:02:54]} 12. Be3 {[%clk 0:02:45]}  Rc8 {[%clk 0:02:54]} 13. Ng3 {[%clk 0:02:27]}  Bxg3 {[%clk 0:02:31]} 14. fxg3 {[%clk 0:02:28]}  Ne4 {[%clk 0:02:32]} 15. g4 {[%clk 0:02:10]}  cxd4 {[%clk 0:02:29]} 16. Bxd4 {[%clk 0:02:06]}  Ndc5 {[%clk 0:02:28]} 17. Bf1 {[%clk 0:02:00]}  Ng3 {[%clk 0:02:16]} 18. Bb5 {[%clk 0:01:52]}  Re7 {[%clk 0:02:16]} 19. g5 {[%clk 0:01:21]}  a6 {[%clk 0:02:11]} 20. Bf1 {[%clk 0:01:06]}  Nxf1 {[%clk 0:02:10]} 21. Rxf1 {[%clk 0:01:06]}  hxg5 {[%clk 0:02:05]} 22. Nxg5 {[%clk 0:01:06]}  Ne4 {[%clk 0:02:05]} 23. Qh5 {[%clk 0:01:04]}  f6 {[%clk 0:01:32]} 24. Qh7+ {[%clk 0:00:50]}  Kf8 {[%clk 0:01:33]} 25. Nxe4 {[%clk 0:00:40]}  dxe4 {[%clk 0:01:29]} 26. Rad1 {[%clk 0:00:29]}  Bg8 {[%clk 0:01:08]} 27. Qg6 {[%clk 0:00:24]}  Bf7 {[%clk 0:01:05]} 28. Qh7 {[%clk 0:00:24]}  Bg8 {[%clk 0:01:05]} 29. Qh4 {[%clk 0:00:24]}  Qe8 {[%clk 0:00:50]} 30. Bxf6 {[%clk 0:00:17]}  Rf7 {[%clk 0:00:43]} 31. Bd4 {[%clk 0:00:10]}  e3 {[%clk 0:00:33]} 32. Rxf7+ {[%clk 0:00:09]}  Bxf7 {[%clk 0:00:32]} 33. Re1 {[%clk 0:00:10]}  Kg8 {[%clk 0:00:26]} 34. Rxe3 {[%clk 0:00:09]}  Qb5 {[%clk 0:00:22]} 35. Rg3 {[%clk 0:00:09]}  Qd5 {[%clk 0:00:12]} 36. Rxg7+ {[%clk 0:00:05]}  Kf8 {[%clk 0:00:12]} 37. Qh8+ {[%clk 0:00:04]}  Bg8 {[%clk 0:00:13]} 38. Qh6 {[%clk 0:00:04]}  Rc6 {[%clk 0:00:10]} 39. Rg6+ {[%clk 0:00:03]}  Ke8 {[%clk 0:00:11]} 40. Rxc6 {[%clk 0:00:03]}  bxc6 {[%clk 0:00:10]} 41. Qg6+ {[%clk 0:00:03]}  Bf7 {[%clk 0:00:11]} 42. Qb1 {[%clk 0:00:02]}  Qxa2 {[%clk 0:00:09]} 43. Qe1+ {[%clk 0:00:02]}  Kf8 {[%clk 0:00:08]} 44. Qf2 {[%clk 0:00:03]}  Qb1+ {[%clk 0:00:07]} 45. Kh2 {[%clk 0:00:03]}  Qe4 {[%clk 0:00:07]} 46. Qg3 {[%clk 0:00:04]}  Ke8 {[%clk 0:00:07]} 47. Qb8+ {[%clk 0:00:03]}  Ke7 {[%clk 0:00:07]} 48. Qc7+ {[%clk 0:00:03]}  Ke8 {[%clk 0:00:07]} 49. Qc8+ {[%clk 0:00:04]}  Ke7 {[%clk 0:00:07]} 50. Qb7+ {[%clk 0:00:03]}  Ke6 {[%clk 0:00:07]} 51. Qb8 {[%clk 0:00:02]}  Kf5 {[%clk 0:00:06]} 52. Qg3 {[%clk 0:00:02]}  Bd5 {[%clk 0:00:06]} 53. Qg7 {[%clk 0:00:01]}  Qf4+ {[%clk 0:00:05]} 54. Qg3 {[%clk 0:00:02]}  Qf1 {[%clk 0:00:05]} 55. Qg4# {[%clk 0:00:02]} 1-0


[Site "https://www.chess.com"]

[Event "Titled Tuesday Blitz March 14 Early 2023"]
[White "Jovic, Stanoje"]
[Black "Acor, Corey"]
[WhiteFideId "905020"]
[BlackFideId "2024861"]
[WhiteElo "2236"]
[BlackElo "2341"]
[Result "0-1"]
[Round "02"]
[TimeControl "180+2"]
[Date "2023.03.14"]
[WhiteClock "0:00:05"]
[BlackClock "0:00:49"]

1. c4 {[%clk 0:03:00]}  e5 {[%clk 0:02:58]} 2. g3 {[%clk 0:03:01]}  Nc6 {[%clk 0:02:54]} 3. Bg2 {[%clk 0:03:00]}  g6 {[%clk 0:02:55]} 4. Nc3 {[%clk 0:02:58]}  Bg7 {[%clk 0:02:55]} 5. Nf3 {[%clk 0:02:58]}  d6 {[%clk 0:02:54]} 6. O-O {[%clk 0:02:57]}  Be6 {[%clk 0:02:52]} 7. d3 {[%clk 0:02:51]}  h6 {[%clk 0:02:44]} 8. Rb1 {[%clk 0:02:51]}  f5 {[%clk 0:02:43]} 9. Nd5 {[%clk 0:02:40]}  Nf6 {[%clk 0:02:40]} 10. e4 {[%clk 0:02:31]}  fxe4 {[%clk 0:02:35]} 11. dxe4 {[%clk 0:02:31]}  O-O {[%clk 0:02:20]} 12. b4 {[%clk 0:02:25]}  Kh7 {[%clk 0:02:16]} 13. b5 {[%clk 0:02:24]}  Ne7 {[%clk 0:02:09]} 14. h3 {[%clk 0:02:17]}  Nxe4 {[%clk 0:02:06]} 15. Nxe5 {[%clk 0:02:11]}  Bxd5 {[%clk 0:01:56]} 16. cxd5 {[%clk 0:02:04]}  Nc3 {[%clk 0:01:55]} 17. Qd3 {[%clk 0:01:49]}  Nxb1 {[%clk 0:01:53]} 18. Nc4 {[%clk 0:01:34]}  Nc3 {[%clk 0:01:52]} 19. Bb2 {[%clk 0:01:28]}  Na4 {[%clk 0:01:37]} 20. Bxg7 {[%clk 0:01:25]}  Kxg7 {[%clk 0:01:37]} 21. Re1 {[%clk 0:01:16]}  Nc5 {[%clk 0:01:27]} 22. Qd4+ {[%clk 0:01:16]}  Kh7 {[%clk 0:01:27]} 23. g4 {[%clk 0:01:11]}  Ng8 {[%clk 0:01:25]} 24. Re2 {[%clk 0:00:27]}  Qf6 {[%clk 0:01:25]} 25. Qd2 {[%clk 0:00:25]}  Rae8 {[%clk 0:01:25]} 26. Ne3 {[%clk 0:00:22]}  Qf4 {[%clk 0:01:04]} 27. Qc2 {[%clk 0:00:19]}  Nf6 {[%clk 0:01:02]} 28. Rd2 {[%clk 0:00:06]}  Nfe4 {[%clk 0:01:00]} 29. Bxe4 {[%clk 0:00:05]}  Nxe4 {[%clk 0:00:53]} 30. Re2 {[%clk 0:00:05]}  Nxf2 {[%clk 0:00:49]} 0-1


[Site "https://www.chess.com"]

[Event "Titled Tuesday Blitz March 14 Early 2023"]
[White "Maatman, Nick"]
[Black "Pourkashiyan, Atousa"]
[WhiteFideId "1040391"]
[BlackFideId "12502014"]
[WhiteElo "2688"]
[BlackElo "2228"]
[Result "1-0"]
[Round "02"]
[TimeControl "180+2"]
[Date "2023.03.14"]
[WhiteClock "0:00:12"]
[BlackClock "0:00:01"]

1. d4 {[%clk 0:03:00]}  Nf6 {[%clk 0:02:56]} 2. c4 {[%clk 0:03:00]}  e6 {[%clk 0:02:56]} 3. g3 {[%clk 0:02:55]}  d5 {[%clk 0:02:55]} 4. Nf3 {[%clk 0:02:56]}  dxc4 {[%clk 0:02:54]} 5. Bg2 {[%clk 0:02:56]}  Nbd7 {[%clk 0:02:52]} 6. O-O {[%clk 0:02:55]}  c6 {[%clk 0:02:52]} 7. a4 {[%clk 0:02:52]}  a5 {[%clk 0:02:52]} 8. Qc2 {[%clk 0:02:45]}  b5 {[%clk 0:02:50]} 9. Bg5 {[%clk 0:02:09]}  Be7 {[%clk 0:02:40]} 10. Na3 {[%clk 0:02:00]}  Bxa3 {[%clk 0:02:15]} 11. bxa3 {[%clk 0:01:59]}  h6 {[%clk 0:02:13]} 12. Bxf6 {[%clk 0:01:44]}  Nxf6 {[%clk 0:02:12]} 13. Ne5 {[%clk 0:01:44]}  Nd5 {[%clk 0:01:18]} 14. Nxc6 {[%clk 0:01:41]}  Qb6 {[%clk 0:01:17]} 15. axb5 {[%clk 0:01:42]}  Qxb5 {[%clk 0:01:18]} 16. Ne5 {[%clk 0:01:40]}  O-O {[%clk 0:01:17]} 17. Rab1 {[%clk 0:01:34]}  Qe8 {[%clk 0:01:17]} 18. Nxc4 {[%clk 0:01:31]}  Ba6 {[%clk 0:01:13]} 19. Nb6 {[%clk 0:01:27]}  Nxb6 {[%clk 0:00:53]} 20. Rxb6 {[%clk 0:01:24]}  Rc8 {[%clk 0:00:52]} 21. Bc6 {[%clk 0:01:12]}  Bxe2 {[%clk 0:00:40]} 22. Rc1 {[%clk 0:01:03]}  Qd8 {[%clk 0:00:37]} 23. Qb2 {[%clk 0:00:43]}  Bd3 {[%clk 0:00:20]} 24. Rb7 {[%clk 0:00:34]}  Rb8 {[%clk 0:00:15]} 25. Rxb8 {[%clk 0:00:20]}  Qxb8 {[%clk 0:00:16]} 26. Qxb8 {[%clk 0:00:20]}  Rxb8 {[%clk 0:00:17]} 27. Rc5 {[%clk 0:00:21]}  a4 {[%clk 0:00:09]} 28. Bxa4 {[%clk 0:00:20]}  Be4 {[%clk 0:00:08]} 29. Rc1 {[%clk 0:00:19]}  Ra8 {[%clk 0:00:06]} 30. Rc4 {[%clk 0:00:18]}  Bd5 {[%clk 0:00:04]} 31. Rb4 {[%clk 0:00:18]}  Rc8 {[%clk 0:00:04]} 32. Kf1 {[%clk 0:00:17]}  Rc1+ {[%clk 0:00:03]} 33. Ke2 {[%clk 0:00:17]}  Ra1 {[%clk 0:00:03]} 34. Rb8+ {[%clk 0:00:17]}  Kh7 {[%clk 0:00:04]} 35. Bc2+ {[%clk 0:00:14]}  g6 {[%clk 0:00:04]} 36. a4 {[%clk 0:00:13]}  Ra2 {[%clk 0:00:04]} 37. Kd3 {[%clk 0:00:12]}  Ra3+ {[%clk 0:00:03]} 38. Kd2 {[%clk 0:00:13]}  Ra2 {[%clk 0:00:03]} 39. Kc3 {[%clk 0:00:13]}  Ra3+ {[%clk 0:00:02]} 40. Kb2 {[%clk 0:00:13]}  Rf3 {[%clk 0:00:02]} 41. a5 {[%clk 0:00:13]}  Rxf2 {[%clk 0:00:03]} 42. a6 {[%clk 0:00:12]}  Rxh2 {[%clk 0:00:02]} 43. a7 {[%clk 0:00:12]}  Be4 {[%clk 0:00:02]} 44. Rc8 {[%clk 0:00:12]}  h5 {[%clk 0:00:02]} 45. Kb3 {[%clk 0:00:13]}  Bd5+ {[%clk 0:00:01]} 46. Kb4 {[%clk 0:00:13]}  Rg2 {[%clk 0:00:01]} 47. Bb3 {[%clk 0:00:12]}  Be4 {[%clk 0:00:01]} 48. d5 {[%clk 0:00:12]} 1-0


[Site "https://www.chess.com"]

[Event "Titled Tuesday Blitz March 14 Early 2023"]
[White "Agasarov, Benik"]
[Black "Staudenhocker43"]
[WhiteFideId "13314823"]
[WhiteElo "2179"]
[BlackElo "2409"]
[Result "0-1"]
[Round "02"]
[TimeControl "180+2"]
[Date "2023.03.14"]
[WhiteClock "0:00:03"]
[BlackClock "0:00:16"]

1. d4 {[%clk 0:03:00]}  Nf6 {[%clk 0:02:13]} 2. Nf3 {[%clk 0:03:01]}  g6 {[%clk 0:02:13]} 3. c4 {[%clk 0:03:01]}  Bg7 {[%clk 0:02:13]} 4. Nc3 {[%clk 0:03:01]}  O-O {[%clk 0:02:14]} 5. g3 {[%clk 0:03:02]}  d6 {[%clk 0:02:15]} 6. Bg2 {[%clk 0:03:02]}  c5 {[%clk 0:02:15]} 7. O-O {[%clk 0:03:02]}  Nc6 {[%clk 0:02:16]} 8. d5 {[%clk 0:03:01]}  Na5 {[%clk 0:02:16]} 9. Nd2 {[%clk 0:03:02]}  e6 {[%clk 0:02:17]} 10. Qc2 {[%clk 0:02:56]}  Re8 {[%clk 0:02:16]} 11. b3 {[%clk 0:02:54]}  exd5 {[%clk 0:02:16]} 12. cxd5 {[%clk 0:02:53]}  a6 {[%clk 0:02:15]} 13. a4 {[%clk 0:02:50]}  Rb8 {[%clk 0:02:15]} 14. Bb2 {[%clk 0:02:50]}  b5 {[%clk 0:02:15]} 15. axb5 {[%clk 0:02:50]}  axb5 {[%clk 0:02:16]} 16. Nce4 {[%clk 0:02:43]}  Bf5 {[%clk 0:02:01]} 17. Nxf6+ {[%clk 0:02:40]}  Bxf6 {[%clk 0:02:01]} 18. Bxf6 {[%clk 0:02:40]}  Bxc2 {[%clk 0:01:37]} 19. Bxd8 {[%clk 0:02:40]}  Nxb3 {[%clk 0:01:34]} 20. Nxb3 {[%clk 0:02:40]}  Rbxd8 {[%clk 0:01:33]} 21. Na5 {[%clk 0:02:38]}  Rxe2 {[%clk 0:01:31]} 22. Rfe1 {[%clk 0:02:38]}  Rxe1+ {[%clk 0:01:31]} 23. Rxe1 {[%clk 0:02:38]}  b4 {[%clk 0:01:31]} 24. Nc6 {[%clk 0:02:38]}  Ra8 {[%clk 0:01:29]} 25. Be4 {[%clk 0:01:44]}  Bxe4 {[%clk 0:01:28]} 26. Nxb4 {[%clk 0:01:44]}  cxb4 {[%clk 0:01:20]} 27. Rxe4 {[%clk 0:01:44]}  Rb8 {[%clk 0:01:21]} 28. Re2 {[%clk 0:01:41]}  b3 {[%clk 0:01:20]} 29. Rb2 {[%clk 0:01:41]}  Kg7 {[%clk 0:01:20]} 30. f4 {[%clk 0:01:38]}  Kf6 {[%clk 0:01:19]} 31. Kf2 {[%clk 0:01:38]}  Kf5 {[%clk 0:01:19]} 32. Kf3 {[%clk 0:01:35]}  h5 {[%clk 0:01:19]} 33. h3 {[%clk 0:01:32]}  Rb4 {[%clk 0:01:18]} 34. g4+ {[%clk 0:01:27]}  hxg4+ {[%clk 0:01:19]} 35. hxg4+ {[%clk 0:01:28]}  Kf6 {[%clk 0:01:19]} 36. Ke3 {[%clk 0:01:25]}  g5 {[%clk 0:01:19]} 37. fxg5+ {[%clk 0:01:22]}  Kxg5 {[%clk 0:01:20]} 38. Kf3 {[%clk 0:01:20]}  Kf6 {[%clk 0:01:07]} 39. Ke3 {[%clk 0:01:18]}  Ke5 {[%clk 0:01:07]} 40. Kd2 {[%clk 0:01:16]}  Kxd5 {[%clk 0:01:06]} 41. Kc3 {[%clk 0:01:13]}  Rb7 {[%clk 0:01:06]} 42. Rd2+ {[%clk 0:01:10]}  Ke4 {[%clk 0:01:06]} 43. Kb2 {[%clk 0:01:08]}  d5 {[%clk 0:01:06]} 44. g5 {[%clk 0:01:06]}  d4 {[%clk 0:01:06]} 45. Rg2 {[%clk 0:01:05]}  d3 {[%clk 0:01:04]} 46. g6 {[%clk 0:01:04]}  fxg6 {[%clk 0:01:01]} 47. Rxg6 {[%clk 0:01:04]}  d2 {[%clk 0:00:55]} 48. Rd6 {[%clk 0:01:03]}  Ke3 {[%clk 0:00:55]} 49. Rd8 {[%clk 0:01:01]}  Ke2 {[%clk 0:00:54]} 50. Re8+ {[%clk 0:01:01]}  Kd1 {[%clk 0:00:54]} 51. Re4 {[%clk 0:00:54]}  Rb5 {[%clk 0:00:53]} 52. Re8 {[%clk 0:00:41]}  Rh5 {[%clk 0:00:48]} 53. Kxb3 {[%clk 0:00:38]}  Rb5+ {[%clk 0:00:46]} 54. Kc4 {[%clk 0:00:34]}  Kc2 {[%clk 0:00:44]} 55. Kxb5 {[%clk 0:00:31]}  d1=Q {[%clk 0:00:44]} 56. Kc6 {[%clk 0:00:28]}  Kc3 {[%clk 0:00:43]} 57. Re5 {[%clk 0:00:26]}  Qg4 {[%clk 0:00:39]} 58. Kd6 {[%clk 0:00:24]}  Qf4 {[%clk 0:00:36]} 59. Ke6 {[%clk 0:00:21]}  Kd4 {[%clk 0:00:37]} 60. Ra5 {[%clk 0:00:20]}  Qh6+ {[%clk 0:00:35]} 61. Kf7 {[%clk 0:00:17]}  Qc6 {[%clk 0:00:29]} 62. Rh5 {[%clk 0:00:15]}  Ke4 {[%clk 0:00:28]} 63. Rh1 {[%clk 0:00:13]}  Qd5+ {[%clk 0:00:22]} 64. Ke7 {[%clk 0:00:11]}  Qe5+ {[%clk 0:00:20]} 65. Kd8 {[%clk 0:00:11]}  Qg5+ {[%clk 0:00:17]} 66. Kd7 {[%clk 0:00:09]}  Kd5 {[%clk 0:00:17]} 67. Rd1+ {[%clk 0:00:07]}  Kc5 {[%clk 0:00:17]} 68. Rf1 {[%clk 0:00:04]}  Qg4+ {[%clk 0:00:16]} 69. Ke7 {[%clk 0:00:03]}  Qe2+ {[%clk 0:00:16]} 0-1


[Site "https://www.chess.com"]

[Event "Titled Tuesday Blitz March 14 Early 2023"]
[White "Starozhilov, Leonid"]
[Black "Hoffmann, Asa"]
[WhiteFideId "14106752"]
[BlackFideId "2001470"]
[WhiteElo "2402"]
[BlackElo "2117"]
[Result "1-0"]
[Round "02"]
[TimeControl "180+2"]
[Date "2023.03.14"]
[WhiteClock "0:01:22"]
[BlackClock "0:01:12"]

1. e4 {[%clk 0:03:00]}  d6 {[%clk 0:02:59]} 2. d4 {[%clk 0:02:58]}  Nf6 {[%clk 0:02:58]} 3. Nc3 {[%clk 0:02:59]}  c6 {[%clk 0:02:52]} 4. f4 {[%clk 0:02:56]}  Qa5 {[%clk 0:02:51]} 5. Bd3 {[%clk 0:02:55]}  e5 {[%clk 0:02:50]} 6. Nf3 {[%clk 0:02:44]}  exd4 {[%clk 0:02:49]} 7. Nxd4 {[%clk 0:02:44]}  Qb6 {[%clk 0:02:49]} 8. Nf3 {[%clk 0:02:40]}  Be7 {[%clk 0:02:47]} 9. Qe2 {[%clk 0:02:38]}  O-O {[%clk 0:02:47]} 10. Qf2 {[%clk 0:02:30]}  d5 {[%clk 0:02:38]} 11. Qxb6 {[%clk 0:02:28]}  axb6 {[%clk 0:02:37]} 12. exd5 {[%clk 0:02:28]}  Nxd5 {[%clk 0:02:34]} 13. Nxd5 {[%clk 0:02:28]}  cxd5 {[%clk 0:02:34]} 14. Be3 {[%clk 0:02:27]}  Bc5 {[%clk 0:02:33]} 15. Kd2 {[%clk 0:02:28]}  Nc6 {[%clk 0:02:32]} 16. c3 {[%clk 0:02:18]}  Bxe3+ {[%clk 0:02:24]} 17. Kxe3 {[%clk 0:02:17]}  Re8+ {[%clk 0:02:23]} 18. Kd2 {[%clk 0:02:18]}  Bg4 {[%clk 0:02:22]} 19. Rhf1 {[%clk 0:02:03]}  Bxf3 {[%clk 0:02:21]} 20. Rxf3 {[%clk 0:02:02]}  h6 {[%clk 0:02:17]} 21. a3 {[%clk 0:02:00]}  Na5 {[%clk 0:02:15]} 22. Kc2 {[%clk 0:01:59]}  Nc4 {[%clk 0:02:12]} 23. Bxc4 {[%clk 0:01:59]}  dxc4 {[%clk 0:02:12]} 24. Rd1 {[%clk 0:01:58]}  Re2+ {[%clk 0:02:10]} 25. Rd2 {[%clk 0:01:59]}  Rae8 {[%clk 0:02:09]} 26. f5 {[%clk 0:01:56]}  b5 {[%clk 0:02:02]} 27. Rf4 {[%clk 0:01:49]}  f6 {[%clk 0:01:56]} 28. Rd4 {[%clk 0:01:44]}  R8e5 {[%clk 0:01:51]} 29. g4 {[%clk 0:01:43]}  Kf8 {[%clk 0:01:45]} 30. Rd8+ {[%clk 0:01:40]}  Kf7 {[%clk 0:01:30]} 31. Rd7+ {[%clk 0:01:40]}  Re7 {[%clk 0:01:29]} 32. Rxe7+ {[%clk 0:01:25]}  Rxe7 {[%clk 0:01:27]} 33. Rd5 {[%clk 0:01:25]}  Re2+ {[%clk 0:01:21]} 34. Kc1 {[%clk 0:01:24]}  Rxh2 {[%clk 0:01:19]} 35. Rxb5 {[%clk 0:01:24]}  Rg2 {[%clk 0:01:19]} 36. Rxb7+ {[%clk 0:01:24]}  Kf8 {[%clk 0:01:19]} 37. a4 {[%clk 0:01:24]}  Rxg4 {[%clk 0:01:19]} 38. a5 {[%clk 0:01:24]}  Re4 {[%clk 0:01:12]} 39. a6 {[%clk 0:01:22]} 1-0


[Site "https://www.chess.com"]

[Event "Titled Tuesday Blitz March 14 Early 2023"]
[White "Matinian, Nikita"]
[Black "Bochnicka, Vladimir"]
[WhiteFideId "24129100"]
[BlackFideId "14943450"]
[WhiteElo "2422"]
[BlackElo "2094"]
[Result "1-0"]
[Round "02"]
[TimeControl "180+2"]
[Date "2023.03.14"]
[WhiteClock "0:00:56"]
[BlackClock "0:01:05"]

1. e4 {[%clk 0:03:00]}  c5 {[%clk 0:02:46]} 2. Nf3 {[%clk 0:02:59]}  Nc6 {[%clk 0:02:45]} 3. Bb5 {[%clk 0:02:59]}  e6 {[%clk 0:02:36]} 4. c3 {[%clk 0:02:58]}  Nge7 {[%clk 0:02:34]} 5. d4 {[%clk 0:02:58]}  cxd4 {[%clk 0:02:30]} 6. cxd4 {[%clk 0:02:59]}  d5 {[%clk 0:02:25]} 7. e5 {[%clk 0:02:59]}  a6 {[%clk 0:02:25]} 8. Ba4 {[%clk 0:02:55]}  Bd7 {[%clk 0:02:25]} 9. Nc3 {[%clk 0:02:53]}  Ng6 {[%clk 0:02:25]} 10. h4 {[%clk 0:02:52]}  Be7 {[%clk 0:02:19]} 11. h5 {[%clk 0:02:52]}  Nf8 {[%clk 0:02:20]} 12. h6 {[%clk 0:02:52]}  g6 {[%clk 0:02:20]} 13. Be3 {[%clk 0:02:42]}  Na5 {[%clk 0:02:18]} 14. Bb3 {[%clk 0:02:08]}  Rc8 {[%clk 0:02:16]} 15. O-O {[%clk 0:02:05]}  b5 {[%clk 0:02:12]} 16. Nh2 {[%clk 0:01:50]}  g5 {[%clk 0:02:11]} 17. Qh5 {[%clk 0:01:47]}  Ng6 {[%clk 0:02:08]} 18. Ng4 {[%clk 0:01:46]}  Nf4 {[%clk 0:01:43]} 19. Bxf4 {[%clk 0:01:45]}  gxf4 {[%clk 0:01:44]} 20. Nxd5 {[%clk 0:01:36]}  exd5 {[%clk 0:01:18]} 21. Bxd5 {[%clk 0:01:37]}  Bxg4 {[%clk 0:01:10]} 22. Bxf7+ {[%clk 0:00:56]}  Kf8 {[%clk 0:01:11]} 23. Qxg4 {[%clk 0:00:56]}  Kxf7 {[%clk 0:01:11]} 24. e6+ {[%clk 0:00:57]}  Kf8 {[%clk 0:01:05]} 25. Qg7+ {[%clk 0:00:56]} 1-0


[Site "https://www.chess.com"]

[Event "Titled Tuesday Blitz March 14 Early 2023"]
[White "aidenzhouu"]
[Black "Mohammad Fahad, Rahman"]
[BlackFideId "10207791"]
[WhiteElo "2403"]
[BlackElo "2323"]
[Result "1-0"]
[Round "02"]
[TimeControl "180+2"]
[Date "2023.03.14"]
[WhiteClock "0:00:12"]
[BlackClock "0:00:19"]

1. d4 {[%clk 0:03:00]}  d5 {[%clk 0:02:58]} 2. c4 {[%clk 0:03:00]}  c6 {[%clk 0:02:58]} 3. Nf3 {[%clk 0:02:59]}  Nf6 {[%clk 0:02:59]} 4. e3 {[%clk 0:02:52]}  Bf5 {[%clk 0:02:55]} 5. Nc3 {[%clk 0:02:51]}  e6 {[%clk 0:02:55]} 6. Nh4 {[%clk 0:02:51]}  Be4 {[%clk 0:02:54]} 7. f3 {[%clk 0:02:51]}  Bg6 {[%clk 0:02:54]} 8. Qb3 {[%clk 0:02:52]}  Qc7 {[%clk 0:02:53]} 9. g3 {[%clk 0:02:32]}  Nbd7 {[%clk 0:02:51]} 10. Bd2 {[%clk 0:02:26]}  Bd6 {[%clk 0:02:51]} 11. Kf2 {[%clk 0:02:21]}  O-O {[%clk 0:02:37]} 12. Rc1 {[%clk 0:02:12]}  dxc4 {[%clk 0:02:18]} 13. Bxc4 {[%clk 0:02:11]}  e5 {[%clk 0:02:18]} 14. Nxg6 {[%clk 0:01:24]}  hxg6 {[%clk 0:02:19]} 15. dxe5 {[%clk 0:01:25]}  Nxe5 {[%clk 0:02:19]} 16. Be2 {[%clk 0:01:26]}  Qe7 {[%clk 0:02:04]} 17. Kg2 {[%clk 0:01:05]}  Rad8 {[%clk 0:02:01]} 18. Rhd1 {[%clk 0:01:02]}  Rfe8 {[%clk 0:02:01]} 19. e4 {[%clk 0:00:54]}  Bc5 {[%clk 0:01:52]} 20. Bf4 {[%clk 0:00:31]}  Bd4 {[%clk 0:01:22]} 21. Rd2 {[%clk 0:00:18]}  a6 {[%clk 0:00:56]} 22. Rcd1 {[%clk 0:00:18]}  c5 {[%clk 0:00:56]} 23. Bf1 {[%clk 0:00:12]}  Nxf3 {[%clk 0:00:52]} 24. Kxf3 {[%clk 0:00:12]}  Nxe4 {[%clk 0:00:46]} 25. Re2 {[%clk 0:00:11]}  Ng5+ {[%clk 0:00:25]} 26. Kg2 {[%clk 0:00:10]}  Qf6 {[%clk 0:00:21]} 27. Nd5 {[%clk 0:00:10]}  Rxe2+ {[%clk 0:00:19]} 28. Bxe2 {[%clk 0:00:10]}  Qf5 {[%clk 0:00:20]} 29. Ne7+ {[%clk 0:00:09]}  Kh7 {[%clk 0:00:20]} 30. Nxf5 {[%clk 0:00:10]}  Ne6 {[%clk 0:00:18]} 31. Nd6 {[%clk 0:00:10]}  Nxf4+ {[%clk 0:00:17]} 32. gxf4 {[%clk 0:00:10]}  Rxd6 {[%clk 0:00:18]} 33. Qxf7 {[%clk 0:00:11]}  Rf6 {[%clk 0:00:18]} 34. Qd7 {[%clk 0:00:11]}  Rxf4 {[%clk 0:00:19]} 35. Bf3 {[%clk 0:00:11]}  g5 {[%clk 0:00:19]} 36. Qh3+ {[%clk 0:00:12]}  Kg6 {[%clk 0:00:19]} 37. Qe6+ {[%clk 0:00:12]}  Kh7 {[%clk 0:00:20]} 38. Be4+ {[%clk 0:00:12]}  Kh8 {[%clk 0:00:19]} 39. Qe8+ {[%clk 0:00:12]} 1-0


[Site "https://www.chess.com"]

[Event "Titled Tuesday Blitz March 14 Early 2023"]
[White "Shuvalova, Polina"]
[Black "Avazkhonov, Alikhon"]
[WhiteFideId "24171760"]
[BlackFideId "14208504"]
[WhiteElo "2297"]
[BlackElo "1739"]
[Result "1-0"]
[Round "02"]
[TimeControl "180+2"]
[Date "2023.03.14"]
[WhiteClock "0:01:51"]
[BlackClock "0:00:01"]

1. d4 {[%clk 0:03:00]}  Nf6 {[%clk 0:02:59]} 2. Nf3 {[%clk 0:02:58]}  e6 {[%clk 0:03:00]} 3. Bf4 {[%clk 0:02:56]}  d5 {[%clk 0:03:00]} 4. e3 {[%clk 0:02:56]}  Bd6 {[%clk 0:03:01]} 5. Nbd2 {[%clk 0:02:56]}  O-O {[%clk 0:03:00]} 6. Bd3 {[%clk 0:02:55]}  c5 {[%clk 0:02:57]} 7. O-O {[%clk 0:02:49]}  Nc6 {[%clk 0:02:58]} 8. c3 {[%clk 0:02:47]}  b6 {[%clk 0:02:58]} 9. Qe2 {[%clk 0:02:43]}  Bb7 {[%clk 0:02:58]} 10. Bg3 {[%clk 0:02:41]}  a5 {[%clk 0:02:35]} 11. a4 {[%clk 0:02:38]}  Qc7 {[%clk 0:01:52]} 12. Bb5 {[%clk 0:02:29]}  Bxg3 {[%clk 0:00:59]} 13. hxg3 {[%clk 0:02:27]}  Ne7 {[%clk 0:00:54]} 14. Ne5 {[%clk 0:02:25]}  Ne4 {[%clk 0:00:46]} 15. g4 {[%clk 0:02:19]}  f6 {[%clk 0:00:37]} 16. Nd3 {[%clk 0:02:13]}  Nxd2 {[%clk 0:00:20]} 17. Qxd2 {[%clk 0:02:13]}  Ng6 {[%clk 0:00:21]} 18. Nf4 {[%clk 0:02:09]}  Nxf4 {[%clk 0:00:21]} 19. exf4 {[%clk 0:02:09]}  e5 {[%clk 0:00:13]} 20. f5 {[%clk 0:02:04]}  cxd4 {[%clk 0:00:05]} 21. cxd4 {[%clk 0:02:04]}  e4 {[%clk 0:00:06]} 22. Rac1 {[%clk 0:02:04]}  Qd6 {[%clk 0:00:06]} 23. Rc3 {[%clk 0:02:02]}  Rac8 {[%clk 0:00:07]} 24. Rfc1 {[%clk 0:02:02]}  Rxc3 {[%clk 0:00:06]} 25. Rxc3 {[%clk 0:01:58]}  Qb4 {[%clk 0:00:06]} 26. g3 {[%clk 0:01:55]}  e3 {[%clk 0:00:02]} 27. Qxe3 {[%clk 0:01:53]}  Qxb2 {[%clk 0:00:02]} 28. Rc7 {[%clk 0:01:53]}  Qb1+ {[%clk 0:00:01]} 29. Kh2 {[%clk 0:01:51]} 1-0


[Site "https://www.chess.com"]

[Event "Titled Tuesday Blitz March 14 Early 2023"]
[White "Leve, Nitai"]
[Black "Sadubayev, Airat"]
[WhiteFideId "2006898"]
[BlackFideId "13713264"]
[WhiteElo "2144"]
[BlackElo "2129"]
[Result "1-0"]
[Round "02"]
[TimeControl "180+2"]
[Date "2023.03.14"]
[WhiteClock "0:02:02"]
[BlackClock "0:00:03"]

1. e4 {[%clk 0:03:00]}  c6 {[%clk 0:02:44]} 2. d4 {[%clk 0:03:00]}  d5 {[%clk 0:02:44]} 3. exd5 {[%clk 0:03:01]}  cxd5 {[%clk 0:02:41]} 4. c4 {[%clk 0:03:01]}  Nf6 {[%clk 0:02:40]} 5. Nc3 {[%clk 0:03:01]}  e6 {[%clk 0:02:40]} 6. Nf3 {[%clk 0:03:01]}  Bb4 {[%clk 0:02:38]} 7. cxd5 {[%clk 0:02:58]}  Nxd5 {[%clk 0:02:34]} 8. Qc2 {[%clk 0:02:58]}  O-O {[%clk 0:02:30]} 9. Bd3 {[%clk 0:02:58]}  h6 {[%clk 0:02:15]} 10. O-O {[%clk 0:02:57]}  Nc6 {[%clk 0:02:02]} 11. a3 {[%clk 0:02:56]}  Be7 {[%clk 0:01:57]} 12. Qe2 {[%clk 0:02:48]}  Nf6 {[%clk 0:01:30]} 13. Ne4 {[%clk 0:02:21]}  Nxd4 {[%clk 0:01:22]} 14. Nxf6+ {[%clk 0:02:21]}  Bxf6 {[%clk 0:01:17]} 15. Qe4 {[%clk 0:02:19]}  Re8 {[%clk 0:00:47]} 16. Nxd4 {[%clk 0:02:10]}  Qxd4 {[%clk 0:00:41]} 17. Qh7+ {[%clk 0:02:10]}  Kf8 {[%clk 0:00:41]} 18. Be3 {[%clk 0:02:10]}  Qd5 {[%clk 0:00:16]} 19. Be4 {[%clk 0:02:06]}  Qd6 {[%clk 0:00:14]} 20. Rfd1 {[%clk 0:02:05]}  Qc7 {[%clk 0:00:07]} 21. Rac1 {[%clk 0:02:04]}  Qa5 {[%clk 0:00:05]} 22. b4 {[%clk 0:02:02]}  Qb5 {[%clk 0:00:05]} 23. Bc5+ {[%clk 0:02:01]}  Qxc5 {[%clk 0:00:04]} 24. Rxc5 {[%clk 0:02:02]}  Ke7 {[%clk 0:00:03]} 25. Rc7+ {[%clk 0:02:02]}  Kf8 {[%clk 0:00:03]} 26. Qh8# {[%clk 0:02:02]} 1-0


[Site "https://www.chess.com"]